bitfinex/quotes_SOLUSD_20220227
["timestamp","ask_amount","ask_price","bid_price","bid_amount"]
[1645927582565,1.58276902,87.007,86.936,2.39896766]
[1645927583165,1.58276902,87.006,86.936,2.39896766]
[1645927583366,1.58276902,87.005,86.936,2.39896766]
[1645927583767,1.58276902,87.006,86.936,2.39896766]
[1645927583967,1.58276902,87.004,86.936,2.39896766]
[1645927584268,1.58276902,87.005,86.936,2.39896766]
[1645927584670,1.58276902,87.005,86.941,2.74026498]
[1645927584867,1.58276902,87.007,86.941,2.74026498]
[1645927585067,1.58276902,87.007,86.943,3.10257756]
[1645927585967,1.58276902,87.006,86.943,3.10257756]
[1645927588871,1.58276902,87.006,86.944,2.39896766]
[1645927590075,1.58276902,87.003,86.944,2.39896766]
[1645927590274,17.2567,87.0,86.944,2.39896766]
[1645927593376,1.58276902,87.007,86.944,2.39896766]
[1645927593577,17.2533,87.01,86.944,2.39896766]
[1645927594385,17.2533,87.01,86.951,2.99613396]
[1645927597878,17.2533,87.01,86.952,2.39896766]
[1645927599480,11.7533,87.01,86.952,2.39896766]
[1645927601780,1.58276902,87.009,86.952,2.39896766]
[1645927602180,1.58276902,87.008,86.952,2.39896766]
[1645927602581,1.58276902,87.007,86.944,2.39896766]
[1645927603181,1.58276902,87.006,86.944,2.39896766]
[1645927603382,4.599,87.005,86.944,2.39896766]
[1645927603583,1.58276902,86.998,86.944,2.39896766]
[1645927603782,17.2605,86.99,86.944,2.39896766]
[1645927605587,7.34578921,86.989,86.944,2.39896766]
[1645927605885,54.70829846,86.976,86.944,2.39896766]
[1645927606086,16.58,86.97,86.893,2.89255642]
[1645927606287,4.601,86.969,86.893,2.89255642]
[1645927606685,31.64127158,86.969,86.893,2.89255642]
[1645927606883,2.74678921,86.968,86.893,2.89255642]
[1645927607083,4.601,86.967,86.893,2.89255642]
[1645927607485,2.74,86.966,86.893,2.89255642]
[1645927607690,4.601,86.965,86.893,2.89255642]
[1645927608089,2.74678921,86.964,86.893,2.89255642]
[1645927608287,4.601,86.963,86.893,2.89255642]
[1645927608486,55.23515168,86.962,86.893,2.89255642]
[1645927608687,4.601,86.961,86.893,2.89255642]
[1645927608887,7.34778921,86.961,86.893,2.89255642]
[1645927609289,2.74678921,86.96,86.894,2.39896766]
[1645927609487,17.2687,86.94,86.894,2.39896766]
[1645927609688,53.42506454,86.939,86.894,2.39896766]
[1645927609890,56.17185375,86.939,86.894,2.39896766]
[1645927610191,2.74678921,86.938,86.894,2.39896766]
[1645927610393,17.2696,86.93,86.894,2.39896766]
[1645927611092,23.3048,86.949,86.894,2.39896766]
[1645927611291,24.3653,86.96,86.894,2.39896766]
[1645927611913,52.10701882,86.959,86.894,2.39896766]
[1645927612312,17.2656,86.94,86.868,2.39896766]
[1645927612511,44.93389551,86.939,86.868,2.39896766]
[1645927614612,17.2689,86.93,86.87,17.2689]
[1645927614814,17.2689,86.93,86.871,2.51371826]
[1645927615016,23.7237,86.957,86.871,2.51371826]
[1645927615215,23.7237,86.957,86.871,5.26050747]
[1645927615418,23.7237,86.957,86.872,5.14575687]
[1645927615816,23.7237,86.957,86.873,2.74678921]
[1645927616015,60.88137743,86.956,86.873,2.74678921]
[1645927616218,17.2638,86.95,86.881,114.2]
[1645927616421,17.2638,86.95,86.873,2.74678921]
[1645927616422,17.2638,86.95,86.883,114.2]
[1645927616615,17.2638,86.95,86.884,2.41886075]
[1645927617416,17.2638,86.95,86.885,2.74678921]
[1645927617619,17.2638,86.95,86.9,17.263]
[1645927617818,17.2638,86.95,86.901,2.34503451]
[1645927618517,17.2616,86.96,86.91,17.2616]
[1645927618717,23.7629,86.989,86.91,17.2616]
[1645927618918,23.7629,86.989,86.912,3.03454034]
[1645927619517,46.86049486,86.984,86.912,3.03454034]
[1645927619718,51.72736569,86.969,86.912,3.03454034]
[1645927621318,51.72736569,86.969,86.955,0.62321493]
[1645927621718,17.2606,86.97,86.956,2.39896766]
[1645927621919,57.5228,87.01,86.956,2.39896766]
[1645927622722,49.54378786,87.009,86.956,2.39896766]
[1645927623127,4.598,87.019,86.956,2.39896766]
[1645927623322,17.2545,87.02,86.956,2.39896766]
[1645927624123,56.87360434,87.019,86.956,2.39896766]
[1645927625523,56.87360434,87.019,86.971,3.07880684]
[1645927627631,2.74,87.018,86.954,2.39896766]
[1645927627826,4.598,87.017,86.954,2.39896766]
[1645927628026,18.87275831,87.017,86.954,2.39896766]
[1645927628230,26.48771568,87.016,86.954,2.39896766]
[1645927628429,4.598,87.015,86.91,17.2609]
[1645927628629,46.96659485,87.015,86.911,27.23311154]
[1645927628830,39.5984538,87.014,86.912,2.27193228]
[1645927629030,16.58,87.0,86.912,2.27193228]
[1645927629230,17.2619,86.99,86.912,2.27193228]
[1645927629431,6.14247306,86.989,86.895,4.70010737]
[1645927629830,23.74092647,86.988,86.895,4.70010737]
[1645927630031,6.30299264,86.987,86.895,4.70010737]
[1645927630231,36.99269264,86.987,86.895,4.70010737]
[1645927630432,25.52317999,86.986,86.895,4.70010737]
[1645927630631,51.85256081,86.984,86.895,4.70010737]
[1645927630838,4.6,86.985,86.895,2.39896766]
[1645927630839,50.61158267,86.969,86.895,2.39896766]
[1645927631036,6.09659644,86.968,86.895,2.39896766]
[1645927631431,4.32455004,86.967,86.895,2.39896766]
[1645927631631,4.601,86.966,86.895,2.39896766]
[1645927631833,9.04359421,86.966,86.895,2.39896766]
[1645927632031,1.36943781,86.965,86.895,2.39896766]
[1645927632231,5.97927908,86.964,86.895,2.39896766]
[1645927632432,1.38253124,86.959,86.895,2.39896766]
[1645927632733,4.601,86.958,86.865,2.39896766]
[1645927632932,24.0544,86.957,86.866,24.9511]
[1645927633135,49.60959067,86.955,86.867,2.5678503]
[1645927633436,4.602,86.954,86.867,2.5678503]
[1645927634436,17.271,86.94,86.87,17.2693]
[1645927634639,46.76145534,86.939,86.871,3.08566454]
[1645927635638,46.76145534,86.939,86.872,2.39896766]
[1645927636538,17.2688,86.93,86.872,2.39896766]
[1645927642842,15.7688,86.93,86.872,2.39896766]
[1645927647545,17.2734,86.92,86.872,2.39896766]
[1645927647747,50.81614932,86.919,86.872,2.39896766]
[1645927648146,50.81614932,86.919,86.865,2.39896766]
[1645927648749,17.2736,86.91,86.865,2.39896766]
[1645927649954,17.2736,86.91,86.865,0.89896766]
[1645927650159,45.95346784,86.909,86.865,0.89896766]
[1645927651569,45.33025291,86.909,86.865,0.89896766]
[1645927652964,17.2736,86.91,86.865,0.89896766]
[1645927654076,17.2698,86.92,86.87,17.2703]
[1645927654274,17.2698,86.92,86.871,2.77174442]
[1645927654572,17.2698,86.92,86.871,3.67071208]
[1645927659679,17.2698,86.92,86.88,17.2687]
[1645927659879,17.2698,86.92,86.881,2.86589166]
[1645927660180,17.2698,86.92,86.881,3.76485932]
[1645927662482,17.2698,86.92,86.881,0.89896766]
[1645927663081,17.2698,86.92,86.865,0.89896766]
[1645927665383,17.2698,86.92,86.87,17.2707]
[1645927665583,17.2698,86.92,86.871,2.66894402]
[1645927666184,17.2698,86.92,86.872,0.89896766]
[1645927666687,118.93907088,87.006,86.881,116.56227554]
[1645927666688,17.2652,86.94,86.881,116.56227554]
[1645927666894,1.58276902,86.977,86.882,2.96162908]
[1645927667086,22.8543,86.998,86.885,3.10620848]
[1645927667087,1.58276902,86.993,86.885,3.10620848]
[1645927667386,22.8543,86.998,86.885,3.10620848]
[1645927667387,1.58276902,86.996,86.891,114.2]
[1645927667588,52.43339792,86.995,86.94,17.2557]
[1645927667789,52.43339792,86.995,86.941,3.0099487]
[1645927669288,52.43339792,86.995,86.942,0.89896766]
[1645927675792,52.43339792,86.995,86.951,2.63799254]
[1645927676191,17.254,87.01,86.951,2.63799254]
[1645927676692,17.254,87.01,86.942,4.598]
[1645927677194,60.34978393,87.038,86.96,17.2512]
[1645927677395,60.34978393,87.038,86.961,2.4938185]
[1645927677695,60.34978393,87.038,86.944,4.597]
[1645927677898,60.34978393,87.038,86.945,136.9098]
[1645927678094,60.34978393,87.038,86.962,2.74678921]
[1645927678293,60.34978393,87.038,86.99,17.2464]
[1645927678492,17.2464,87.05,86.991,2.92529184]
[1645927678693,57.4977,87.06,86.991,8.18529184]
[1645927678893,4.596,87.059,86.991,8.18529184]
[1645927679292,4.596,87.059,86.992,0.89896766]
[1645927679502,59.73637594,87.058,86.992,0.89896766]
[1645927679696,4.596,87.057,86.992,0.89896766]
[1645927680499,24.11564901,87.056,86.992,0.89896766]
[1645927680699,4.596,87.055,86.992,0.89896766]
[1645927680899,28.7048598,87.055,86.992,0.89896766]
[1645927681098,25.9648598,87.055,86.992,0.89896766]
[1645927681299,21.3688598,87.055,86.992,0.89896766]
[1645927681698,4.596,87.054,86.992,0.89896766]
[1645927682304,4.596,87.054,86.964,2.61696342]
[1645927682502,59.73637594,87.058,86.971,3.10480521]
[1645927682503,4.597,87.057,86.971,3.10480521]
[1645927682908,59.73637594,87.058,86.972,4.596]
[1645927683109,59.73637594,87.058,86.966,4.596]
[1645927683503,59.73637594,87.058,86.965,3.64575687]
[1645927683905,59.73637594,87.058,86.967,2.74678921]
[1645927684109,59.73637594,87.058,86.968,4.597]
[1645927684506,59.73637594,87.058,86.99,17.2458]
[1645927684709,59.73637594,87.058,86.991,2.29279999]
[1645927685307,59.73637594,87.058,86.992,0.89896766]
[1645927686509,59.73637594,87.058,87.0,17.2436]
[1645927686822,59.73637594,87.058,86.992,0.89896766]
[1645927688424,59.73637594,87.058,86.987,2.25120329]
[1645927688624,59.73637594,87.058,87.011,2.72721296]
[1645927689224,17.241,87.08,87.011,2.72721296]
[1645927690226,52.0614567,87.078,87.011,2.72721296]
[1645927690426,4.595,87.087,87.011,2.72721296]
[1645927690427,4.595,87.087,87.02,17.2401]
[1645927690630,24.8067,87.088,87.021,2.87474428]
[1645927690829,17.2389,87.09,87.021,2.87474428]
[1645927691027,4.594,87.1,87.022,2.63515088]
[1645927691227,22.5084,87.106,87.022,2.63515088]
[1645927691432,42.74456468,87.105,87.04,17.2359]
[1645927691627,42.74456468,87.105,87.041,3.01152091]
[1645927692431,42.74456468,87.105,87.041,117.21152091]
[1645927692629,42.74456468,87.105,87.051,2.6737977]
[1645927693731,4.593,87.129,87.051,119.62058691]
[1645927693934,1.58276902,87.154,87.051,119.62058691]
[1645927693935,4.591,87.153,87.062,2.48688581]
[1645927694132,1.58276902,87.164,87.062,2.48688581]
[1645927694133,57.4335,87.16,87.062,2.48688581]
[1645927694333,23.03282586,87.159,87.051,2.74678921]
[1645927694831,45.01405245,87.136,87.052,0.89896766]
[1645927695230,45.01405245,87.136,87.052,3.28100885]
[1645927695436,45.01405245,87.136,87.08,17.2277]
[1645927695634,45.01405245,87.136,87.081,2.38680564]
[1645927696033,45.01405245,87.136,87.062,2.30807175]
[1645927696436,45.01405245,87.136,87.063,2.67678951]
[1645927697236,45.01405245,87.136,87.081,2.85017406]
[1645927697739,47.75405245,87.136,87.081,2.85017406]
[1645927698139,45.01405245,87.136,87.082,0.89896766]
[1645927699440,45.01405245,87.136,87.09,17.2255]
[1645927699639,45.01405245,87.136,87.091,2.65177831]
[1645927700040,16.58,87.2,87.1,16.58]
[1645927700243,17.1135,87.225,87.102,2.26245759]
[1645927700441,46.2391,87.238,87.13,17.2155]
[1645927700640,1.86988925,87.237,87.111,117.23974901]
[1645927700844,4.588,87.236,87.114,3.06719918]
[1645927701041,1.37717654,87.234,87.114,3.06719918]
[1645927701242,4.588,87.233,87.114,3.06719918]
[1645927701443,16.58,87.23,87.12,17.2186]
[1645927701641,4.588,87.229,87.121,2.68619112]
[1645927702043,25.86098234,87.229,87.121,2.68619112]
[1645927702244,21.27298234,87.228,87.121,2.68619112]
[1645927702442,4.588,87.227,87.121,2.68619112]
[1645927702642,22.792,87.226,87.121,2.68619112]
[1645927702948,4.588,87.225,87.121,2.68619112]
[1645927703245,7.33478921,87.225,87.121,2.68619112]
[1645927703446,2.74678921,87.224,87.121,2.68619112]
[1645927703643,4.588,87.223,87.121,2.68619112]
[1645927704248,4.588,87.224,87.131,114.2]
[1645927704447,22.792,87.226,87.131,2.62860254]
[1645927704647,20.60619313,87.223,87.121,2.92880345]
[1645927704847,4.588,87.222,87.121,2.92880345]
[1645927705045,50.29948051,87.221,87.113,117.27073292]
[1645927705258,50.29948051,87.221,87.122,0.89896766]
[1645927705458,4.588,87.22,87.122,0.89896766]
[1645927705679,7.328,87.22,87.122,0.89896766]
[1645927705880,2.74678921,87.219,87.123,23.829]
[1645927706178,4.588,87.218,87.124,2.4797304]
[1645927706581,2.74678921,87.217,87.124,2.4797304]
[1645927706779,4.588,87.216,87.124,2.4797304]
[1645927706979,4.588,87.22,87.124,2.4797304]
[1645927707480,4.588,87.22,87.125,0.89896766]
[1645927708380,25.43298234,87.219,87.125,0.89896766]
[1645927708583,1.86330007,87.218,87.125,0.89896766]
[1645927708780,25.43298234,87.218,87.125,0.89896766]
[1645927708982,8.99443855,87.217,87.125,0.89896766]
[1645927709180,41.79959126,87.217,87.125,0.89896766]
[1645927709382,25.43298234,87.216,87.125,0.89896766]
[1645927709584,6.0057,87.215,87.125,0.89896766]
[1645927709782,30.01419313,87.215,87.125,0.89896766]
[1645927709986,27.8617517,87.214,87.125,0.89896766]
[1645927710283,7.33478921,87.213,87.103,2.85211804]
[1645927710483,7.33478921,87.213,87.104,0.89896766]
[1645927710683,2.74678921,87.212,87.104,0.89896766]
[1645927710882,4.589,87.211,87.104,0.89896766]
[1645927711282,25.91738921,87.21,87.104,0.89896766]
[1645927711483,4.589,87.209,87.11,17.2206]
[1645927711685,6.83578921,87.209,87.111,2.25951826]
[1645927711884,2.74678921,87.208,87.111,2.25951826]
[1645927712083,43.50456118,87.206,87.111,2.25951826]
[1645927712285,4.589,87.205,87.111,2.25951826]
[1645927712486,7.33578921,87.205,87.111,2.25951826]
[1645927712685,2.74678921,87.204,87.111,2.25951826]
[1645927712888,4.589,87.203,87.111,2.25951826]
[1645927713286,2.74678921,87.202,87.111,2.25951826]
[1645927713488,4.589,87.201,87.112,0.89896766]
[1645927713886,115.64025251,87.199,87.112,0.89896766]
[1645927714087,114.2,87.197,87.112,0.89896766]
[1645927714287,120.42248238,87.196,87.112,0.89896766]
[1645927714487,1.48399304,87.195,87.112,0.89896766]
[1645927714686,16.58,87.18,87.112,0.89896766]
[1645927714886,44.19808098,87.178,87.112,0.89896766]
[1645927715086,4.59,87.177,87.112,0.89896766]
[1645927715489,7.33,87.177,87.112,0.89896766]
[1645927715692,2.74678921,87.176,87.112,0.89896766]
[1645927715891,4.59,87.175,87.112,0.89896766]
[1645927716090,33.8078,87.17,87.112,0.89896766]
[1645927716290,6.17652423,87.169,87.112,0.89896766]
[1645927716491,31.92964901,87.169,87.071,0.89896766]
[1645927716789,52.2220598,87.168,87.071,0.89896766]
[1645927716989,4.591,87.167,87.071,0.89896766]
[1645927717189,31.93064901,87.167,87.071,0.89896766]
[1645927717389,24.5928598,87.166,87.071,0.89896766]
[1645927717591,4.591,87.165,87.071,0.89896766]
[1645927717791,49.56105118,87.164,87.071,0.89896766]
[1645927717990,16.58,87.16,87.071,0.89896766]
[1645927718193,4.591,87.159,87.071,0.89896766]
[1645927718891,2.74678921,87.158,87.071,0.89896766]
[1645927719094,28.424,87.157,87.071,0.89896766]
[1645927719494,2.74678921,87.156,87.071,0.89896766]
[1645927719695,4.591,87.155,87.065,0.89896766]
[1645927720095,2.74678921,87.154,87.065,0.89896766]
[1645927720297,4.591,87.153,87.065,0.89896766]
[1645927720495,4.591,87.153,87.071,2.31506772]
[1645927720699,23.833,87.157,87.071,2.31506772]
[1645927720896,4.591,87.156,87.071,2.31506772]
[1645927721099,23.833,87.157,87.071,2.31506772]
[1645927722297,17.2319,87.16,87.082,2.5448021]
[1645927722597,17.2221,87.17,87.084,2.67218818]
[1645927723201,17.2221,87.17,87.085,2.74678921]
[1645927723601,17.2221,87.17,87.1,17.2221]
[1645927723800,17.2221,87.17,87.101,2.4574472]
[1645927724201,17.2221,87.17,87.085,2.74678921]
[1645927724401,57.4109,87.19,87.085,2.74678921]
[1645927724599,17.22,87.18,87.12,17.22]
[1645927724800,17.22,87.18,87.121,3.00916052]
[1645927725806,43.03884383,87.179,87.122,0.89896766]
[1645927727303,2.74678921,87.178,87.122,0.89896766]
[1645927727905,43.03884383,87.179,87.122,0.89896766]
[1645927729113,43.03884383,87.179,87.104,0.89896766]
[1645927729304,2.74678921,87.178,87.104,0.89896766]
[1645927729501,4.59,87.177,87.104,0.89896766]
[1645927729702,17.2273,87.17,87.104,0.89896766]
[1645927730104,2.74678921,87.169,87.104,0.89896766]
[1645927732204,24.60152647,87.168,87.104,0.89896766]
[1645927732403,4.59,87.167,87.104,0.89896766]
[1645927732603,7.33678921,87.167,87.104,0.89896766]
[1645927732806,2.74678921,87.166,87.081,3.59212302]
[1645927733004,52.78952175,87.165,87.081,3.59212302]
[1645927733409,2.74678921,87.164,87.081,3.59212302]
[1645927733607,4.591,87.163,87.081,3.59212302]
[1645927734008,2.74678921,87.162,87.081,3.59212302]
[1645927734206,4.591,87.161,87.081,3.59212302]
[1645927734606,2.74678921,87.16,87.081,3.59212302]
[1645927734809,4.591,87.159,87.081,3.59212302]
[1645927735008,4.591,87.159,87.082,24.8611]
[1645927735210,2.74678921,87.158,87.083,3.01371942]
[1645927735411,4.591,87.157,87.083,3.01371942]
[1645927735810,2.74678921,87.156,87.084,0.89896766]
[1645927736014,4.591,87.155,87.084,0.89896766]
[1645927736413,2.74678921,87.154,87.084,0.89896766]
[1645927736612,16.58,87.15,87.084,0.89896766]
[1645927736813,65.47993893,87.149,87.084,0.89896766]
[1645927737013,68.22672814,87.149,87.084,0.89896766]
[1645927737315,2.74,87.148,87.084,0.89896766]
[1645927737512,4.591,87.147,87.084,0.89896766]
[1645927737912,2.74678921,87.146,87.084,0.89896766]
[1645927738112,4.591,87.145,87.084,0.89896766]
[1645927738514,2.74678921,87.144,87.084,0.89896766]
[1645927738712,4.591,87.143,87.084,0.89896766]
[1645927738914,4.591,87.143,87.063,0.89896766]
[1645927739113,2.74678921,87.142,87.063,0.89896766]
[1645927739330,4.591,87.141,87.063,0.89896766]
[1645927739731,2.74678921,87.14,87.063,0.89896766]
[1645927739931,4.591,87.139,87.063,0.89896766]
[1645927742034,2.74678921,87.138,87.063,0.89896766]
[1645927742233,4.591,87.137,87.063,0.89896766]
[1645927742639,2.74,87.136,87.063,0.89896766]
[1645927742837,4.591,87.135,87.063,0.89896766]
[1645927743036,57.18929936,87.134,87.063,0.89896766]
[1645927743244,4.591,87.133,87.063,0.89896766]
[1645927746441,33.8202,87.12,87.063,0.89896766]
[1645927746637,114.2,87.115,86.991,47.4901]
[1645927746838,114.2,87.099,86.992,2.4364266]
[1645927747042,16.58,87.09,86.992,2.4364266]
[1645927747439,29.19652647,87.089,86.992,2.4364266]
[1645927747641,44.28615361,87.089,86.992,2.4364266]
[1645927747939,63.74915617,87.088,86.992,2.4364266]
[1645927748141,4.595,87.087,86.992,2.4364266]
[1645927748341,69.56474481,87.087,86.992,2.4364266]
[1645927748545,16.98693718,87.086,86.992,2.4364266]
[1645927748743,59.88595537,87.084,86.992,2.4364266]
[1645927748942,16.58,87.07,86.992,2.4364266]
[1645927749143,52.34356525,87.069,86.992,2.4364266]
[1645927749542,55.08356525,87.069,86.992,2.4364266]
[1645927749743,52.34356525,87.069,86.992,2.4364266]
[1645927749943,2.74678921,87.068,86.992,2.4364266]
[1645927750743,52.34356525,87.069,86.992,2.4364266]
[1645927751943,4.596,87.068,86.992,2.4364266]
[1645927752345,52.34356525,87.069,86.992,116.6364266]
[1645927752545,52.34356525,87.069,86.993,2.65399144]
[1645927753345,52.34356525,87.069,87.0,17.2419]
[1645927753546,52.34356525,87.069,87.001,2.28740511]
[1645927753947,17.2464,87.08,86.992,2.62630094]
[1645927754748,17.2464,87.08,87.02,17.2396]
[1645927754949,43.38932692,87.079,87.021,2.50892546]
[1645927758654,17.2464,87.08,87.021,2.50892546]
[1645927758857,17.2464,87.08,87.03,17.2377]
[1645927759057,17.2365,87.09,87.031,2.28309714]
[1645927759257,4.594,87.109,87.033,2.93868956]
[1645927759454,4.593,87.132,87.033,2.93868956]
[1645927759654,57.02628891,87.131,87.035,2.33181514]
[1645927759957,4.593,87.13,87.035,2.33181514]
[1645927760558,62.0391,87.13,87.051,2.52041556]
[1645927760757,62.0391,87.13,87.053,2.70845629]
[1645927760957,24.60152647,87.129,87.053,2.70845629]
[1645927761157,4.591,87.128,87.053,2.70845629]
[1645927761560,57.4461,87.13,87.06,17.2321]
[1645927761758,57.4461,87.13,87.061,2.6369678]
[1645927762360,82.04762647,87.13,87.061,2.6369678]
[1645927763460,81.54762647,87.13,87.061,2.6369678]
[1645927763760,56.9461,87.13,87.061,2.6369678]
[1645927763962,56.9461,87.13,87.071,2.43935366]
[1645927764362,4.591,87.142,87.071,2.43935366]
[1645927764561,57.4333,87.15,87.054,2.98895739]
[1645927764961,57.4333,87.15,87.08,17.2272]
[1645927765160,57.4333,87.15,87.081,2.31047571]
[1645927765361,57.95982891,87.139,87.081,2.31047571]
[1645927765863,2.74,87.156,87.081,2.31047571]
[1645927766061,2.74678921,87.165,87.062,2.80672695]
[1645927766261,4.591,87.164,87.064,114.2]
[1645927766461,4.591,87.164,87.065,2.27775386]
[1645927766864,42.92943671,87.139,87.065,5.02454307]
[1645927767062,42.92943671,87.139,87.066,2.74678921]
[1645927767461,42.92943671,87.139,87.09,17.2262]
[1645927767661,57.4207,87.17,87.091,2.7074379]
[1645927767863,4.59,87.172,87.091,27.2926379]
[1645927768065,17.0594,87.174,87.092,117.18834815]
[1645927768263,17.0594,87.174,87.093,2.83140971]
[1645927768661,55.69120203,87.173,87.1,17.2238]
[1645927768863,17.2221,87.17,87.101,3.10624781]
[1645927769867,17.2221,87.17,87.11,17.2221]
[1645927770064,17.2221,87.17,87.111,2.98470989]
[1645927771464,17.2221,87.17,87.111,117.18470989]
[1645927771668,2.74678921,87.175,87.12,17.2203]
[1645927771865,2.74678921,87.175,87.121,2.81752685]
[1645927772068,4.589,87.199,87.112,2.74375192]
[1645927772265,6.17176902,87.219,87.114,114.2]
[1645927772469,4.32955823,87.221,87.115,2.63946992]
[1645927772673,58.96983196,87.22,87.115,2.63946992]
[1645927772872,4.588,87.219,87.14,17.2158]
[1645927773104,4.588,87.219,87.142,2.69858464]
[1645927773268,58.96983196,87.22,87.142,2.69858464]
[1645927773466,4.588,87.219,87.142,2.69858464]
[1645927773967,61.71662117,87.22,87.142,2.69858464]
[1645927775570,58.96983196,87.22,87.15,17.2139]
[1645927775770,58.96983196,87.22,87.151,2.99168772]
[1645927781600,58.96983196,87.22,87.142,24.7784]
[1645927781899,7.33478921,87.219,87.143,2.27551115]
[1645927782301,2.74,87.218,87.143,2.27551115]
[1645927782500,4.588,87.217,87.143,2.27551115]
[1645927782900,2.74678921,87.216,87.143,2.27551115]
[1645927783101,4.588,87.215,87.143,2.27551115]
[1645927783502,2.74,87.214,87.143,2.27551115]
[1645927784603,4.588,87.213,87.143,2.27551115]
[1645927785003,2.74678921,87.212,87.143,2.27551115]
[1645927785202,4.588,87.211,87.143,2.27551115]
[1645927785604,2.74678921,87.21,87.143,2.27551115]
[1645927785803,4.588,87.209,87.143,2.27551115]
[1645927786304,2.74678921,87.208,87.143,2.27551115]
[1645927786504,47.83900354,87.206,87.143,2.27551115]
[1645927786704,4.588,87.205,87.143,2.27551115]
[1645927786904,7.33478921,87.205,87.143,2.27551115]
[1645927787106,2.74678921,87.204,87.12,17.2199]
[1645927787308,4.589,87.203,87.121,24.3934]
[1645927787506,4.589,87.203,87.122,2.46512321]
[1645927787712,2.74,87.202,87.122,2.46512321]
[1645927788009,4.589,87.201,87.122,2.46512321]
[1645927788215,2.74,87.202,87.122,2.46512321]
[1645927788408,24.9277,87.205,87.122,2.46512321]
[1645927788409,2.74678921,87.2,87.122,2.46512321]
[1645927788608,4.589,87.199,87.122,2.46512321]
[1645927788909,2.74678921,87.198,87.122,2.46512321]
[1645927789109,4.589,87.197,87.122,2.46512321]
[1645927789409,2.74,87.196,87.122,2.46512321]
[1645927789610,4.589,87.195,87.122,2.46512321]
[1645927790010,2.74678921,87.194,87.122,2.46512321]
[1645927790211,59.88738039,87.192,87.122,2.46512321]
[1645927790413,4.589,87.191,87.122,2.46512321]
[1645927790614,7.329,87.191,87.122,2.46512321]
[1645927790812,2.74678921,87.19,87.122,2.46512321]
[1645927791013,4.589,87.189,87.122,2.46512321]
[1645927791414,2.74,87.188,87.122,2.46512321]
[1645927791614,2.74,87.188,87.112,24.3439]
[1645927791814,2.74,87.188,87.113,2.250449]
[1645927792514,2.74,87.188,87.115,3.01057455]
[1645927794015,4.589,87.187,87.115,3.01057455]
[1645927794416,2.74678921,87.186,87.115,3.01057455]
[1645927794615,4.589,87.185,87.115,3.01057455]
[1645927795818,7.33578921,87.185,87.115,3.01057455]
[1645927796821,7.33578921,87.185,87.09,17.2264]
[1645927797018,1.58276902,87.179,87.091,24.8545]
[1645927797219,42.94613848,87.177,87.092,2.29465032]
[1645927797521,4.59,87.176,87.092,2.29465032]
[1645927797719,22.8314,87.175,87.092,2.29465032]
[1645927797917,4.59,87.174,87.092,2.29465032]
[1645927798317,7.33678921,87.174,87.092,2.29465032]
[1645927798518,17.2286,87.17,87.092,2.29465032]
[1645927798717,4.59,87.169,87.092,2.29465032]
[1645927798919,7.33678921,87.169,87.092,2.29465032]
[1645927799120,2.74678921,87.168,87.092,2.29465032]
[1645927799345,4.59,87.167,87.092,2.29465032]
[1645927799818,2.74678921,87.166,87.092,2.29465032]
[1645927800021,4.59,87.165,87.092,2.29465032]
[1645927800420,55.91066886,87.163,87.092,2.29465032]
[1645927801723,58.65745807,87.163,87.092,2.29465032]
[1645927801924,2.74678921,87.163,87.092,2.29465032]
[1645927802123,17.2286,87.17,87.092,2.29465032]
[1645927802526,17.2286,87.17,87.093,4.59]
[1645927802726,17.2286,87.17,87.093,7.27258208]
[1645927802929,59.22760195,87.169,87.094,114.2]
[1645927803127,59.22760195,87.169,87.095,3.11822034]
[1645927803624,17.2286,87.17,87.111,2.53165262]
[1645927803826,17.2286,87.17,87.095,118.79]
[1645927804125,17.2286,87.17,87.096,2.54425172]
[1645927804324,17.2286,87.17,87.097,4.59]
[1645927805530,17.2286,87.17,87.12,17.2206]
[1645927805728,17.2286,87.17,87.121,2.78237262]
[1645927813640,17.2286,87.17,87.13,17.219]
[1645927813839,1.58276902,87.194,87.121,116.98237262]
[1645927814038,1.58276902,87.206,87.122,3.00503482]
[1645927814238,1.58276902,87.207,87.125,3.07005564]
[1645927814444,26.51898921,87.209,87.125,3.07005564]
[1645927814445,83.67773921,87.209,87.125,3.07005564]
[1645927814644,82.09497019,87.209,87.15,17.2145]
[1645927814845,82.09497019,87.209,87.151,2.36575711]
[1645927815045,84.8417594,87.209,87.151,2.36575711]